{"text_format":"3","workbook":"xlsx","n_sheets":1,"sheets":["Indítási kiadások"],"not_rendered":{"defined_names":1},"read":"whole","date_system":"1900"}

{"sheet":"Indítási kiadások","index":0,"n_rows":120,"n_cols":4,"rows_kept":120,"merged":[[1,1,1,3],[10,1,10,3],[17,1,17,3],[25,1,25,3],[34,1,34,3],[42,1,42,3],[50,1,50,3],[55,1,55,3],[57,1,57,3],[59,1,59,3],[60,1,60,3],[69,1,69,3],[76,1,76,3],[81,1,81,3],[82,1,82,3],[90,1,90,3],[102,1,102,3],[110,1,110,3],[115,1,115,3]]}
["INDÍTÁSI KIADÁSOK",null,null,"CÉGNÉV KFT."]
[null,"MEGJEGYZÉS A MUNKALAP HASZNÁLATA ELŐTT\nMajdnem mindenkivel, aki valaha új vállalkozásba kezdett, megtörtént már, hogy alulbecsülte a költségeket, majd szembesülnie kellett a nem megfelelő tőketartalékkal való működés veszélyével. Ez a csapda úgy kerülhető el a legbiztosabban, ha szigorú megközelítést alkalmaz a kutatási és tervezési szakaszban. Indítási kiadások nevű sablonunk végigvezeti Önt ezen a folyamaton.\n\nKEZDÉS A KÖLTSÉGEK FELMÉRÉSÉVEL\nMilyen költségekkel fog járni a vállalkozás beindítása? A pontosság záloga a részletekre való odafigyelés. Minden egyes kiadási kategóriához készítsen egy listát, amelyen minden megvásárolandó tétel szerepel. Ebbe a tárgyi eszközök (például felszerelések, berendezések) és a szolgáltatások (például átalakítás, biztosítás) is beletartoznak. Ezután határozza meg, hogy hol lehet beszerezni ezeket az árukat vagy szolgáltatásokat. A kutatást több szállítónál is végezze el, használjon például összehasonlító weblapokat. Ne csak az árra figyeljen; a fizetési feltételek, a szállítás, a megbízhatóság és a szolgáltatás is fontos. "]
[]
[null,"INDÍTÁSI KIADÁSOK"]
[null,"ÉPÜLETEK/INGATLANOK"," ","ÖSSZEG"]
[null,"Vásárlás",null,{"v":0,"d":"0.00 Ft"}]
[null,"Építkezés",null,{"v":0,"d":"0.00 Ft"}]
[null,"Átalakítás",null,{"v":0,"d":"0.00 Ft"}]
[null,"Egyéb",null,{"v":0,"d":"0.00 Ft"}]
[null,"Összeg",null,{"$f":"SUBTOTAL(109,Ingatlan[ÖSSZEG])","v":{"v":0,"d":"0.00 Ft"}}]
[]
[null,"BÉRLEMÉNYEK FEJLESZTÉSEI"," ","ÖSSZEG"]
[null,"1. tétel",null,{"v":0,"d":"0.00 Ft"}]
[null,"2. tétel",null,{"v":0,"d":"0.00 Ft"}]
[null,"3. tétel",null,{"v":0,"d":"0.00 Ft"}]
[null,"4. tétel",null,{"v":0,"d":"0.00 Ft"}]
[null,"Összeg",null,{"$f":"SUBTOTAL(109,Felújítások[ÖSSZEG])","v":{"v":0,"d":"0.00 Ft"}}]
[]
[null,"TÁRGYI ESZKÖZÖK LISTÁJA"," ","ÖSSZEG"]
[null,"Bútorzat",null,{"v":0,"d":"0.00 Ft"}]
[null,"Eszközök",null,{"v":0,"d":"0.00 Ft"}]
[null,"Alkatrészek",null,{"v":0,"d":"0.00 Ft"}]
[null,"Gépészet",null,{"v":0,"d":"0.00 Ft"}]
[null,"Egyéb",null,{"v":0,"d":"0.00 Ft"}]
[null,"Összeg",null,{"$f":"SUBTOTAL(109,Tőke[ÖSSZEG])","v":{"v":0,"d":"0.00 Ft"}}]
[]
[null,"HELYSZÍNI ÉS ADMINISZTRÁCIÓS KIADÁSOK"," ","ÖSSZEG"]
[null,"Bérleti díj",null,{"v":0,"d":"0.00 Ft"}]
[null,"Közműbefizetések",null,{"v":0,"d":"0.00 Ft"}]
[null,"Jogi és könyvelési díjak",null,{"v":0,"d":"0.00 Ft"}]
[null,"Előre fizetett biztosítás",null,{"v":0,"d":"0.00 Ft"}]
[null,"Nyitás előtti fizetések ",null,{"v":0,"d":"0.00 Ft"}]
[null,"Egyéb",null,{"v":0,"d":"0.00 Ft"}]
[null,"Összeg",null,{"$f":"SUBTOTAL(109,AdminKöltségek[ÖSSZEG])","v":{"v":0,"d":"0.00 Ft"}}]
[]
[null,"NYITÓ KÉSZLET"," ","ÖSSZEG"]
[null,"1. kategória",null,{"v":0,"d":"0.00 Ft"}]
[null,"2. kategória",null,{"v":0,"d":"0.00 Ft"}]
[null,"3. kategória",null,{"v":0,"d":"0.00 Ft"}]
[null,"4. kategória",null,{"v":0,"d":"0.00 Ft"}]
[null,"5. kategória",null,{"v":0,"d":"0.00 Ft"}]
[null,"Összeg",null,{"$f":"SUBTOTAL(109,NyitóKészlet[ÖSSZEG])","v":{"v":0,"d":"0.00 Ft"}}]
[]
[null,"HIRDETÉSI ÉS PROMÓCIÓS KIADÁSOK"," ","ÖSSZEG"]
[null,"Hirdetés",null,{"v":0,"d":"0.00 Ft"}]
[null,"Táblák kihelyezése",null,{"v":0,"d":"0.00 Ft"}]
[null,"Nyomda",null,{"v":0,"d":"0.00 Ft"}]
[null,"Utazás/szórakozás",null,{"v":0,"d":"0.00 Ft"}]
[null,"Egyéb/további kategóriák",null,{"v":0,"d":"0.00 Ft"}]
[null,"Összeg",null,{"$f":"SUBTOTAL(109,PromóKöltségek[ÖSSZEG])","v":{"v":0,"d":"0.00 Ft"}}]
[]
[null,"EGYÉB KIADÁSOK"," ","ÖSSZEG"]
[null,"1. egyéb kiadás",null,{"v":0,"d":"0.00 Ft"}]
[null,"2. egyéb kiadás",null,{"v":0,"d":"0.00 Ft"}]
[null,"Összeg",null,{"$f":"SUBTOTAL(109,EgyébKiadások[ÖSSZEG])","v":{"v":0,"d":"0.00 Ft"}}]
[]
[null,"Tartalék előre nem látott kiadásokra",null,{"v":0,"d":"0.00 Ft"}]
[]
[null,"Működőtőke ",null,{"v":0,"d":"0.00 Ft"}]
[]
[null,"TARTALÉK LÉTREHOZÁSA AZ ELŐRE NEM LÁTOTT KIADÁSOKRA\nA beszámolóban mindenképpen ejtsen szót arról, hogy miként döntött az ebbe a tartalékba teendő összegről. \n\nA PÉNZFORGALOM MEGHATÁROZÁSA\nNem indíthat vállalkozást üres bankfiókkal. Elegendő készpénztartalékra van szüksége a vállalkozás beindításával kapcsolatos kiadásokhoz. Előbb-utóbb készítenie kell egy 12 hónapos pénzforgalmi előrejelzést. Ez az a pont, amikor fel kell becsülnie a működőtőkével kapcsolatos igényeket. Egyelőre hagyja ezt a sort üresen, vagy írjon be egy közelítő becslést. Miután létrehozta a pénzforgalmi előrejelzést, visszatérhet, és beírhatja a gondos körültekintéssel megállapított összeget.\n\nA TŐKE FORRÁSAINAK MEGADÁSA\nMiután felbecsülte az induláshoz szükséges kezdőtőkét, a figyelmét a munkalap felső részére érdemes fordítania. Adja meg a saját maga, illetve a partnerek vagy befektetők által, valamint a kölcsönfelvétellel biztosítandó összegeket."]
[]
[null,"TŐKEFORRÁSOK"]
[null,"TULAJDONOSI BEFEKTETÉS (NÉV ÉS TULAJDONJOG %-A)"," ","ÖSSZEG"]
[null,"Az Ön neve és tulajdonjogának százaléka",null,{"v":0,"d":"0.00 Ft"}]
[null,"Egyéb befektető",null,{"v":0,"d":"0.00 Ft"}]
[null,"Egyéb befektető",null,{"v":0,"d":"0.00 Ft"}]
[null,"Egyéb befektető",null,{"v":0,"d":"0.00 Ft"}]
[null,"Összeg",null,{"$f":"SUBTOTAL(109,TulajdonosokBefektetései[ÖSSZEG])","v":{"v":0,"d":"0.00 Ft"}}]
[]
[null,"BANKI HITELEK"," ","ÖSSZEG"]
[null,"1. bank",null,{"v":0,"d":"0.00 Ft"}]
[null,"2. bank",null,{"v":0,"d":"0.00 Ft"}]
[null,"3. bank",null,{"v":0,"d":"0.00 Ft"}]
[null,"4. bank",null,{"v":0,"d":"0.00 Ft"}]
[null,"Összeg",null,{"$f":"SUBTOTAL(109,BankiHitelek[ÖSSZEG])","v":{"v":0,"d":"0.00 Ft"}}]
[]
[null,"EGYÉB HITELEK"," ","ÖSSZEG"]
[null,"1. forrás",null,{"v":0,"d":"0.00 Ft"}]
[null,"2. forrás",null,{"v":0,"d":"0.00 Ft"}]
[null,"Összeg",null,{"$f":"SUBTOTAL(109,EgyébHitelek[ÖSSZEG])","v":{"v":0,"d":"0.00 Ft"}}]
[]
[null,"FEDEZETBIZTOSÍTÉK BIZTOSÍTÁSA\nHa ezt a tervet szeretné felhasználni egy banki hitelkérelemhez, ebben a szakaszban alul megjelenítheti a hitel fedezeteként felajánlott eszközöket, és felbecsülheti e tételek értékét. A fedezetértékek becsléséhez néhány biztosítékot is érdemes biztosítania."]
[]
[null,"ÖSSZEFOGLALÓ KIMUTATÁS"]
[null,"TŐKEFORRÁS"," ","ÖSSZESEN"]
[null,"Tulajdonosi és egyéb befektetések",null,{"$f":"TulajdonosokBefektetései[[#Totals],[ÖSSZEG]]","v":{"v":0,"d":"0.00 Ft"}}]
[null,"Banki hitelek",null,{"$f":"BankiHitelek[[#Totals],[ÖSSZEG]]","v":{"v":0,"d":"0.00 Ft"}}]
[null,"Egyéb hitelek",null,{"$f":"EgyébHitelek[[#Totals],[ÖSSZEG]]","v":{"v":0,"d":"0.00 Ft"}}]
[null,"Összeg",null,{"$f":"SUBTOTAL(109,TőkeForrások[ÖSSZESEN])","v":{"v":0,"d":"0.00 Ft"}}]
[]
[null,"INDÍTÁSI KIADÁSOK"," ","ÖSSZESEN"]
[null,"Épületek/ingatlanok",null,{"$f":"Ingatlan[[#Totals],[ÖSSZEG]]","v":{"v":0,"d":"0.00 Ft"}}]
[null,"Bérlemények fejlesztései",null,{"$f":"Felújítások[[#Totals],[ÖSSZEG]]","v":{"v":0,"d":"0.00 Ft"}}]
[null,"Tárgyi eszközök",null,{"$f":"Tőke[[#Totals],[ÖSSZEG]]","v":{"v":0,"d":"0.00 Ft"}}]
[null,"Helyszíni/adminisztrációs kiadások",null,{"$f":"AdminKöltségek[[#Totals],[ÖSSZEG]]","v":{"v":0,"d":"0.00 Ft"}}]
[null,"Nyitó készlet",null,{"$f":"NyitóKészlet[[#Totals],[ÖSSZEG]]","v":{"v":0,"d":"0.00 Ft"}}]
[null,"Hirdetési/promóciós kiadások",null,{"$f":"PromóKöltségek[[#Totals],[ÖSSZEG]]","v":{"v":0,"d":"0.00 Ft"}}]
[null,"Egyéb kiadások",null,{"$f":"EgyébKiadások[[#Totals],[ÖSSZEG]]","v":{"v":0,"d":"0.00 Ft"}}]
[null,"Készenléti alap",null,{"$f":"SUM('Indítási kiadások'!$C$57)","v":{"v":0,"d":"0.00 Ft"}}]
[null,"Működőtőke",null,{"$f":"SUM('Indítási kiadások'!$C$59)","v":{"v":0,"d":"0.00 Ft"}}]
[null,"Összeg",null,{"$f":"SUBTOTAL(109,IndításiKiadások[ÖSSZESEN])","v":{"v":0,"d":"0.00 Ft"}}]
[]
[null,"BIZTOSÍTÉK ÉS FEDEZET HITELAJÁNLATHOZ "]
[null,"FEDEZET HITELEKHEZ","LEÍRÁS","ÉRTÉK"]
[null,"Ingatlan",null,{"v":0,"d":"0.00 Ft"}]
[null,"Egyéb fedezet",null,{"v":0,"d":"0.00 Ft"}]
[null,"Egyéb fedezet",null,{"v":0,"d":"0.00 Ft"}]
[null,"Egyéb fedezet",null,{"v":0,"d":"0.00 Ft"}]
[null,"Összeg",null,{"$f":"SUBTOTAL(109,Fedezet[ÉRTÉK])","v":{"v":0,"d":"0.00 Ft"}}]
[]
[null,"TULAJDONOSOK"," ","  "]
[null,"Az Ön neve"]
[null,"Egyéb tulajdonos"]
[null,"Egyéb tulajdonos"]
[]
[null,"KEZESSÉGVÁLLALÓK (A TULAJDONOSON KÍVÜL)"," ","  "]
[null,"1. kezességvállaló"]
[null,"2. kezességvállaló"]
[null,"3. kezességvállaló"]